lending/lending_fUSD_20250114
["ID","MTS","AMOUNT","RATE_DAILY","PERIOD"]
[348855023,1736814641825,-500.0,9.888e-05,2]
[348855024,1736814641834,-500.0,9.888e-05,2]
[348855025,1736814641843,-500.0,9.888e-05,2]
[348855026,1736814641852,-500.0,9.888e-05,2]
[348855027,1736814641865,-500.0,9.888e-05,2]
[348855028,1736814641874,-500.0,9.888e-05,2]
[348855029,1736814641884,-500.0,9.888e-05,2]
[348855030,1736814641893,-500.0,9.888e-05,2]
[348855031,1736814641903,-500.0,9.888e-05,2]
[348855032,1736814641912,-500.0,9.888e-05,2]
[348855033,1736814641921,-500.0,9.888e-05,2]
[348855034,1736814641931,-500.0,9.888e-05,2]
[348855035,1736814641941,-250.40487931,9.888e-05,2]
[348855036,1736814641950,-500.0,9.888e-05,2]
[348855037,1736814641960,-500.0,9.888e-05,2]
[348855038,1736814641969,-500.0,9.888e-05,2]
[348855039,1736814641979,-500.0,9.888e-05,2]
[348855040,1736814641988,-500.0,9.888e-05,2]
[348855041,1736814641997,-500.0,9.888e-05,2]
[348855042,1736814642007,-500.0,9.888e-05,2]
[348855043,1736814642195,-500.0,9.888e-05,2]
[348855044,1736814642207,-761.09,9.888e-05,2]
[348855045,1736814642216,-500.0,9.888e-05,2]
[348855046,1736814642226,-500.0,9.888e-05,2]
[348855047,1736814642235,-500.0,9.888e-05,2]
[348855048,1736814642244,-500.0,9.888e-05,2]
[348855049,1736814642255,-2578.35,9.888e-05,2]
[348855050,1736814642265,-1391.93,9.888e-05,2]
[348855051,1736814642275,-500.0,9.888e-05,2]
[348855052,1736814642284,-500.0,9.888e-05,2]
[348855053,1736814642293,-500.0,9.888e-05,2]
[348855054,1736814642302,-500.0,9.888e-05,2]
[348855055,1736814642312,-1321.59,9.888e-05,2]
[348855056,1736814642321,-500.0,9.888e-05,2]
[348855057,1736814642330,-500.0,9.888e-05,2]
[348855058,1736814642340,-500.0,9.888e-05,2]
[348855059,1736814642350,-500.0,9.888e-05,2]
[348855060,1736814642361,-500.0,9.888e-05,2]
[348855061,1736814642370,-500.0,9.888e-05,2]
[348855062,1736814642380,-500.0,9.888e-05,2]
[348855063,1736814642389,-401.25385962,9.888e-05,2]
[348855064,1736814642398,-500.0,9.888e-05,2]
[348855065,1736814642407,-765.75,9.888e-05,2]
[348855066,1736814642416,-1674.13,9.888e-05,2]
[348855067,1736814642425,-500.0,9.888e-05,2]
[348855068,1736814642435,-500.0,9.888e-05,2]
[348855069,1736814642444,-500.0,9.888e-05,2]
[348855070,1736814642453,-500.0,9.888e-05,2]
[348855071,1736814642462,-500.0,9.888e-05,2]
[348855072,1736814642471,-500.0,9.888e-05,2]
[348855073,1736814642480,-500.0,9.888e-05,2]
[348855074,1736814642490,-500.0,9.888e-05,2]
[348855075,1736814642499,-848.79,9.888e-05,2]
[348855076,1736814642509,-1093.28,9.888e-05,2]
[348855077,1736814642518,-500.0,9.888e-05,2]
[348855078,1736814642528,-500.0,9.888e-05,2]
[348855079,1736814642537,-500.0,9.888e-05,2]
[348855080,1736814642546,-500.0,9.888e-05,2]
[348855081,1736814642556,-500.0,9.888e-05,2]
[348855082,1736814642565,-500.0,9.888e-05,2]
[348855083,1736814642574,-500.0,9.888e-05,2]
[348855084,1736814642583,-500.0,9.888e-05,2]
[348855085,1736814642592,-500.0,9.888e-05,2]
[348855086,1736814642602,-500.0,9.888e-05,2]
[348855087,1736814642612,-500.0,9.888e-05,2]
[348855088,1736814642621,-500.0,9.888e-05,2]
[348855089,1736814642631,-500.0,9.888e-05,2]
[348855090,1736814642640,-500.0,9.888e-05,2]
[348855091,1736814642649,-500.0,9.888e-05,2]
[348855092,1736814642659,-500.0,9.888e-05,2]
[348855093,1736814642668,-500.0,9.888e-05,2]
[348855094,1736814642677,-500.0,9.888e-05,2]
[348855095,1736814642686,-500.0,9.888e-05,2]
[348855096,1736814642696,-500.0,9.888e-05,2]
[348855097,1736814642705,-500.0,9.888e-05,2]
[348855098,1736814642715,-500.0,9.888e-05,2]
[348855099,1736814642724,-500.0,9.888e-05,2]
[348855100,1736814642734,-500.0,9.888e-05,2]
[348855101,1736814642743,-500.0,9.888e-05,2]
[348855102,1736814642752,-500.0,9.888e-05,2]
[348855103,1736814642762,-500.0,9.888e-05,2]
[348855104,1736814642771,-500.0,9.888e-05,2]
[348855105,1736814642780,-500.0,9.888e-05,2]
[348855106,1736814642790,-500.0,9.888e-05,2]
[348855107,1736814642799,-500.0,9.888e-05,2]
[348855108,1736814642808,-500.0,9.888e-05,2]
[348855109,1736814642817,-500.0,9.888e-05,2]
[348855110,1736814642827,-500.0,9.888e-05,2]
[348855111,1736814642836,-500.0,9.888e-05,2]
[348855112,1736814642845,-2291.26,9.888e-05,2]
[348855113,1736814642856,-500.0,9.888e-05,2]
[348855114,1736814642865,-500.0,9.888e-05,2]
[348855115,1736814642875,-500.0,9.888e-05,2]
[348855116,1736814642884,-500.0,9.888e-05,2]
[348855117,1736814642893,-500.0,9.888e-05,2]
[348855118,1736814642902,-500.0,9.888e-05,2]
[348855119,1736814642912,-500.0,9.888e-05,2]
[348855120,1736814642921,-500.0,9.888e-05,2]
[348855121,1736814642930,-1232.1,9.888e-05,2]
[348855122,1736814642940,-500.0,9.888e-05,2]
[348855123,1736814642949,-500.0,9.888e-05,2]
[348855124,1736814642960,-611.78161876,9.888e-05,2]
[348855125,1736814642970,-500.0,9.888e-05,2]
[348855126,1736814642980,-500.0,9.888e-05,2]
[348855127,1736814642990,-500.0,9.888e-05,2]
[348855128,1736814642999,-500.0,9.888e-05,2]
[348855129,1736814643008,-500.0,9.888e-05,2]
[348855130,1736814643017,-500.0,9.888e-05,2]
[348855131,1736814643027,-500.0,9.888e-05,2]
[348855132,1736814643036,-500.0,9.888e-05,2]
[348855133,1736814643046,-500.0,9.888e-05,2]
[348855134,1736814643055,-500.0,9.888e-05,2]
[348855135,1736814643064,-500.0,9.888e-05,2]
[348855136,1736814643073,-500.0,9.888e-05,2]
[348855137,1736814643082,-500.0,9.888e-05,2]
[348855138,1736814643091,-500.0,9.888e-05,2]
[348855139,1736814643101,-2764.11,9.888e-05,2]
[348855140,1736814643111,-500.0,9.888e-05,2]
[348855141,1736814643125,-500.0,9.888e-05,2]
[348855143,1736814643134,-500.0,9.888e-05,2]
[348855145,1736814643143,-500.0,9.888e-05,2]
[348855146,1736814643153,-500.0,9.888e-05,2]
[348855147,1736814643163,-651.71,9.889e-05,2]
[348855148,1736814643172,-515.32,9.889e-05,2]
[348855150,1736814643181,-500.0,9.889e-05,2]
[348855152,1736814643191,-500.0,9.889e-05,2]
[348855153,1736814643201,-500.0,9.889e-05,2]
[348855154,1736814643210,-500.0,9.889e-05,2]
[348855155,1736814643220,-560.22,9.889e-05,2]
[348855156,1736814643229,-500.0,9.889e-05,2]
[348855157,1736814643239,-500.0,9.889e-05,2]
[348855158,1736814643248,-500.0,9.889e-05,2]
[348855159,1736814643257,-500.0,9.889e-05,2]
[348855160,1736814643266,-694.03,9.889e-05,2]
[348855161,1736814643276,-500.0,9.889e-05,2]
[348855162,1736814643285,-500.0,9.889e-05,2]
[348855163,1736814643294,-500.0,9.889e-05,2]
[348855164,1736814643304,-539.12,9.889e-05,2]
[348855165,1736814643313,-500.0,9.889e-05,2]
[348855166,1736814643322,-500.0,9.889e-05,2]
[348855167,1736814643331,-500.0,9.889e-05,2]
[348855168,1736814643341,-500.0,9.889e-05,2]
[348855169,1736814643351,-500.0,9.889e-05,2]
[348855170,1736814643362,-500.0,9.889e-05,2]
[348855171,1736814643371,-500.0,9.889e-05,2]
[348855172,1736814643381,-500.0,9.889e-05,2]
[348855173,1736814643391,-500.0,9.889e-05,2]
[348855174,1736814643400,-500.0,9.889e-05,2]
[348855175,1736814643409,-500.0,9.889e-05,2]
[348855176,1736814643419,-500.0,9.889e-05,2]
[348855177,1736814643429,-500.0,9.889e-05,2]
[348855178,1736814643438,-500.0,9.889e-05,2]
[348855179,1736814643447,-500.0,9.889e-05,2]
[348855181,1736814643457,-500.0,9.889e-05,2]
[348855183,1736814643466,-500.0,9.889e-05,2]
[348855185,1736814643475,-500.0,9.889e-05,2]
[348855186,1736814643485,-500.0,9.889e-05,2]
[348855187,1736814643494,-559.4,9.889e-05,2]
[348855188,1736814643503,-665.46,9.889e-05,2]
[348855189,1736814643513,-602.08245264,9.889e-05,2]
[348855190,1736814643522,-500.0,9.889e-05,2]
[348855191,1736814643532,-500.0,9.889e-05,2]
[348855192,1736814643541,-500.0,9.889e-05,2]
[348855193,1736814643551,-500.0,9.889e-05,2]
[348855194,1736814643560,-500.0,9.889e-05,2]
[348855195,1736814643569,-500.0,9.889e-05,2]
[348855196,1736814643578,-500.0,9.889e-05,2]
[348855197,1736814643588,-500.0,9.889e-05,2]
[348855198,1736814643597,-500.0,9.889e-05,2]
[348855199,1736814643607,-500.0,9.889e-05,2]
[348855200,1736814643618,-615.35,9.889e-05,2]
[348855201,1736814643627,-798.25,9.889e-05,2]
[348855202,1736814643636,-1810.23,9.889e-05,2]
[348855203,1736814643645,-500.0,9.889e-05,2]
[348855204,1736814643655,-742.38,9.889e-05,2]
[348855205,1736814643664,-500.0,9.889e-05,2]
[348855206,1736814643673,-500.0,9.889e-05,2]
[348855207,1736814643682,-500.0,9.889e-05,2]
[348855208,1736814643691,-500.0,9.889e-05,2]
[348855209,1736814643700,-500.0,9.889e-05,2]
[348855210,1736814643709,-500.0,9.889e-05,2]
[348855211,1736814643720,-3996.17,9.889e-05,2]
[348855212,1736814643729,-500.0,9.889e-05,2]
[348855213,1736814643738,-500.0,9.889e-05,2]
[348855214,1736814643747,-500.0,9.889e-05,2]
[348855215,1736814643756,-500.0,9.889e-05,2]
[348855216,1736814643766,-655.59,9.889e-05,2]
[348855217,1736814643775,-500.0,9.889e-05,2]
[348855218,1736814643784,-500.0,9.889e-05,2]
[348855219,1736814643793,-500.0,9.889e-05,2]
[348855220,1736814643802,-500.0,9.889e-05,2]
[348855222,1736814643811,-500.0,9.889e-05,2]
[348855223,1736814643820,-500.0,9.889e-05,2]
[348855225,1736814643829,-1011.21,9.889e-05,2]
[348855227,1736814643838,-500.0,9.889e-05,2]
[348855229,1736814643847,-535.14,9.889e-05,2]
[348855231,1736814643857,-500.0,9.889e-05,2]
[348855232,1736814643866,-500.0,9.889e-05,2]
[348855235,1736814643876,-607.67,9.889e-05,2]
[348855237,1736814643885,-504.42,9.889e-05,2]
[348855240,1736814643894,-500.0,9.889e-05,2]
[348855241,1736814643903,-1107.44,9.889e-05,2]
[348855243,1736814643912,-1450.75,9.889e-05,2]
[348855245,1736814643922,-708.19,9.889e-05,2]
[348855247,1736814643931,-500.0,9.889e-05,2]
[348855248,1736814643940,-500.0,9.889e-05,2]
[348855249,1736814643950,-500.0,9.889e-05,2]
[348855250,1736814643959,-941.54,9.889e-05,2]
[348855251,1736814643968,-613.64375269,9.89e-05,2]
[348855252,1736814643978,-500.0,9.89e-05,2]
[348855253,1736814643987,-500.0,9.89e-05,2]
[348855254,1736814643996,-500.0,9.89e-05,2]
[348855255,1736814644005,-500.0,9.89e-05,2]
[348855256,1736814644015,-500.0,9.89e-05,2]
[348855257,1736814644024,-500.0,9.89e-05,2]
[348855258,1736814644033,-602.74257638,9.89e-05,2]
[348855259,1736814644043,-500.0,9.89e-05,2]
[348855260,1736814644052,-500.0,9.89e-05,2]
[348855261,1736814644061,-326.84829565,9.89e-05,2]
[348855262,1736814644071,-500.0,9.89e-05,2]
[348855263,1736814644080,-500.0,9.89e-05,2]
[348855264,1736814644089,-500.0,9.89e-05,2]
[348855265,1736814644098,-271.90843516,9.89e-05,2]
[348855266,1736814644109,-500.0,9.89e-05,2]
[348855267,1736814644118,-500.0,9.89e-05,2]
[348855268,1736814644130,-194.71413545,9.89e-05,2]
[348855269,1736814644139,-500.0,9.89e-05,2]
[348855270,1736814644148,-500.0,9.89e-05,2]
[348855271,1736814644157,-500.0,9.89e-05,2]
[348855272,1736814644167,-597.68528767,9.89e-05,2]
[348855273,1736814644175,-500.0,9.89e-05,2]
[348855274,1736814644185,-500.0,9.89e-05,2]
[348855275,1736814644195,-243.47234988,9.89e-05,2]
[348855276,1736814644206,-500.0,9.89e-05,2]
[348855277,1736814644215,-500.0,9.89e-05,2]
[348855278,1736814644224,-500.0,9.89e-05,2]
[348855279,1736814644233,-500.0,9.89e-05,2]
[348855280,1736814644243,-500.0,9.89e-05,2]
[348855281,1736814644252,-500.0,9.89e-05,2]
[348855282,1736814644261,-500.0,9.89e-05,2]
[348855283,1736814644271,-500.0,9.89e-05,2]
[348855284,1736814644280,-500.0,9.89e-05,2]
[348855285,1736814644290,-500.0,9.89e-05,2]
[348855286,1736814644299,-500.0,9.89e-05,2]
[348855287,1736814644308,-500.0,9.89e-05,2]
[348855288,1736814644317,-500.0,9.89e-05,2]
[348855289,1736814644327,-500.0,9.89e-05,2]
[348855290,1736814644336,-511.51667453,9.89e-05,2]
[348855291,1736814644345,-500.0,9.89e-05,2]
[348855292,1736814644355,-500.0,9.89e-05,2]
[348855293,1736814644365,-500.0,9.89e-05,2]
[348855294,1736814644374,-150.0,9.89e-05,2]
[348855295,1736814644383,-500.0,9.89e-05,2]
[348855296,1736814644393,-500.0,9.89e-05,2]
[348855297,1736814644402,-500.0,9.89e-05,2]
[348855298,1736814644411,-500.0,9.89e-05,2]
[348855299,1736814644421,-500.0,9.89e-05,2]
[348855300,1736814644431,-541.76325889,9.89e-05,2]
[348855301,1736814644440,-500.0,9.89e-05,2]
[348855302,1736814644449,-500.0,9.89e-05,2]
[348855303,1736814644459,-500.0,9.89e-05,2]
[348855304,1736814644469,-500.0,9.89e-05,2]
[348855305,1736814644534,-500.0,9.89e-05,2]
[348855306,1736814644543,-500.0,9.89e-05,2]
[348855307,1736814644553,-500.0,9.89e-05,2]
[348855308,1736814644563,-500.0,9.89e-05,2]
[348855309,1736814644573,-500.0,9.89e-05,2]
[348855310,1736814644582,-500.0,9.89e-05,2]
[348855311,1736814644591,-500.0,9.89e-05,2]
[348855312,1736814644601,-500.0,9.89e-05,2]
[348855313,1736814644612,-500.0,9.89e-05,2]
[348855314,1736814644621,-500.0,9.89e-05,2]
[348855315,1736814644630,-500.0,9.89e-05,2]
[348855316,1736814644639,-500.0,9.89e-05,2]
[348855317,1736814644649,-500.0,9.89e-05,2]
[348855318,1736814644658,-500.0,9.89e-05,2]
[348855319,1736814644667,-500.0,9.89e-05,2]
[348855320,1736814644676,-500.0,9.89e-05,2]
[348855321,1736814644685,-500.0,9.89e-05,2]
[348855322,1736814644694,-500.0,9.89e-05,2]
[348855323,1736814644703,-500.0,9.89e-05,2]
[348855324,1736814644712,-500.0,9.89e-05,2]
[348855325,1736814644722,-856.58,9.89e-05,2]
[348855326,1736814644731,-500.0,9.89e-05,2]
[348855327,1736814644741,-500.0,9.89e-05,2]
[348855328,1736814644751,-500.0,9.89e-05,2]
[348855329,1736814644761,-882.96,9.89e-05,2]
[348855330,1736814644770,-651.71,9.89e-05,2]
[348855331,1736814644779,-500.0,9.89e-05,2]
[348855332,1736814644789,-827.8,9.89e-05,2]
[348855333,1736814644798,-500.0,9.89e-05,2]
[348855334,1736814644808,-500.0,9.89e-05,2]
[348855335,1736814644817,-500.0,9.89e-05,2]
[348855336,1736814644827,-500.0,9.89e-05,2]
[348855337,1736814644836,-509.78,9.89e-05,2]
[348855338,1736814644845,-500.0,9.89e-05,2]
[348855339,1736814644857,-500.0,9.89e-05,2]
[348855340,1736814644866,-500.0,9.89e-05,2]
[348855341,1736814644875,-500.0,9.89e-05,2]
[348855342,1736814644884,-1474.48,9.89e-05,2]
[348855343,1736814644894,-1532.41,9.89e-05,2]
[348855344,1736814644903,-1535.33,9.89e-05,2]
[348855345,1736814644913,-3439.42,9.89e-05,2]
[348855346,1736814644923,-1525.71,9.89e-05,2]
[348855347,1736814644933,-2420.4,9.89e-05,2]
[348855348,1736814644943,-1224.59,9.89e-05,2]
[348855349,1736814644953,-2270.08,9.89e-05,2]
[348855350,1736814644963,-1355.23,9.89e-05,2]
[348855351,1736814644973,-500.0,9.89e-05,2]
[348855352,1736814644982,-977.53,9.891e-05,2]
[348855353,1736814644992,-500.0,9.891e-05,2]
[348855354,1736814645002,-927.07,9.891e-05,2]
[348855355,1736814645012,-1510.06,9.891e-05,2]
[348855356,1736814645022,-909.76,9.891e-05,2]
[348855357,1736814645031,-875.61,9.891e-05,2]
[348855358,1736814645040,-500.0,9.891e-05,2]
[348855359,1736814645050,-1109.06,9.891e-05,2]
[348855360,1736814645059,-783.31,9.891e-05,2]
[348855361,1736814645068,-1814.08,9.891e-05,2]
[348855362,1736814645078,-1516.14,9.891e-05,2]
[348855363,1736814645088,-2156.57,9.891e-05,2]
[348855364,1736814645097,-1562.26,9.891e-05,2]
[348855365,1736814645106,-1875.04,9.891e-05,2]
[348855366,1736814645115,-8823.57,9.891e-05,2]
[348855367,1736814645128,-1232.54,9.891e-05,2]
[348855368,1736814645138,-500.0,9.891e-05,2]
[348855369,1736814645148,-839.9,9.891e-05,2]
[348855370,1736814645158,-2123.98,9.891e-05,2]
[348855371,1736814645168,-1979.24,9.891e-05,2]
[348855372,1736814645177,-500.0,9.891e-05,2]
[348855373,1736814645186,-1769.06,9.891e-05,2]
[348855374,1736814645196,-642.72,9.891e-05,2]
[348855375,1736814645205,-1347.0,9.891e-05,2]
[348855376,1736814645214,-500.0,9.891e-05,2]
[348855377,1736814645223,-1550.0,9.891e-05,2]
[348855378,1736814645235,-1000.0,9.891e-05,2]
[348855379,1736814645245,-947.35,9.891e-05,2]
[348855380,1736814645254,-14744.515,9.9e-05,2]
[348855381,1736814645263,-500.0,9.9e-05,2]
[348855382,1736814645272,-1000.0,9.9e-05,2]
[348855383,1736814645281,-200.0,9.952e-05,2]
[348855384,1736814645290,-449.48,9.954e-05,2]
[348855385,1736814645299,-151.87849,9.973e-05,2]
[348855386,1736814645308,-500.0,9.973e-05,2]
[348855387,1736814645318,-500.0,9.973e-05,2]
[348855388,1736814645328,-183903.34010291,9.994e-05,2]
[348855389,1736814645337,-651.71,9.999e-05,2]
[348855390,1736814645346,-651.71,9.999e-05,2]
[348855391,1736814645356,-651.71,9.999e-05,2]
[348855392,1736814645365,-651.71,9.999e-05,2]
[348855393,1736814645374,-651.71,9.999e-05,2]
[348855394,1736814645383,-651.71,9.999e-05,2]
[348855395,1736814645393,-651.71,9.999e-05,2]
[348855396,1736814645402,-651.71,9.999e-05,2]
[348855397,1736814645411,-651.71,9.999e-05,2]
[348855398,1736814645420,-651.71,9.999e-05,2]
[348855399,1736814645429,-651.71,9.999e-05,2]
[348855400,1736814645437,-651.71,9.999e-05,2]
[348855401,1736814645446,-651.71,9.999e-05,2]
[348855402,1736814645455,-651.71,9.999e-05,2]
[348855403,1736814645465,-651.71,9.999e-05,2]
[348855404,1736814645474,-651.71,9.999e-05,2]
[348855405,1736814645483,-651.71,9.999e-05,2]
[348855406,1736814645492,-651.71,9.999e-05,2]
[348855407,1736814645502,-651.71,9.999e-05,2]
[348855408,1736814645511,-651.71,9.999e-05,2]
[348855409,1736814645520,-651.71,9.999e-05,2]
[348855410,1736814645528,-651.71,9.999e-05,2]
[348855411,1736814645538,-500.0,9.999e-05,2]
[348855412,1736814645547,-996.0,0.0001,2]
[348855413,1736814645556,-379036.44586614,0.0001,2]
[348855414,1736814645565,-413807.47600029,0.0001,2]
[348855415,1736814645574,-902.2103,0.0001,2]
[348855416,1736814645583,-200.00000105,0.0001,2]
[348855417,1736814645592,-257.74687498,0.0001,2]
[348855418,1736814645601,-144142.52987083,0.0001,2]
[348855419,1736814645612,-2383.752,0.0001,2]
[348855420,1736814645622,-163.705,0.0001,2]
[348855421,1736814645631,-1059456.51833858,0.0001,2]
[348855422,1736814645917,-2369.36578022,0.0001,2]
[348855423,1736814645936,-3001.006688,0.0001,2]
[348855424,1736814645947,-382.11078226,0.0001,2]
[348855425,1736814645960,-37078.54844816,0.0001,2]
[348855426,1736814645971,-94278.8520004,0.0001,2]
[348855428,1736814646219,-398.62975953,0.0001,2]
[348855429,1736814646231,-801.81421915,0.0001,2]
[348855430,1736814646243,-1157.46453,0.0001,2]
[348855431,1736814646254,-1981.6046449,0.0001,2]
[348855432,1736814646266,-1123.0,0.0001,2]
[348855433,1736814646277,-809.62,0.0001,2]
[348855434,1736814646289,-178610.57293883,0.0001,2]
[348855435,1736814646301,-1383.78168941,0.0001,2]
[348855436,1736814646344,-500.0,9.887e-05,2]
[348855437,1736814646353,-466.89495127,0.0001,2]
[348855438,1736814646366,-7793.05861426,0.0001,2]
[348855444,1736814646893,-306.0,9.805e-05,2]
[348855445,1736814646905,-194.0,9.805e-05,2]
[348855446,1736814646915,-5424.71172442,0.0001,2]
[348855448,1736814647018,-9742.7896,0.0001,2]
[348855449,1736814647030,-779513.26871352,0.0001,2]
[348855450,1736814647645,-1001.27444657,9.888e-05,2]
[348855451,1736814647655,-1745.46404607,0.0001,2]
[348855452,1736814647667,-338.4,0.0001,2]
[348855453,1736814647679,-5695.71509948,0.0001,2]
[348855454,1736814647690,-455.38002,0.0001,2]
[348855455,1736814647702,-550438.44529744,0.0001,2]
[348855456,1736814647713,-800.0,0.0001,2]
[348855457,1736814647725,-9580.0,0.0001,2]
[348855458,1736814647736,-378.8694,0.0001,2]
[348855459,1736814647747,-54698.06831335,0.0001,2]
[348855460,1736814647758,-379.52097928,0.0001,2]
[348855461,1736814647769,-1257.18660747,0.0001,2]
[348855462,1736814647781,-1816.10619814,0.0001,2]
[348855463,1736814647803,-619.02,0.0001,2]
[348855464,1736814791934,500.0,0.00022646,120]
[348855465,1736814796450,2000.0,0.0002201,120]
[348855466,1736814870788,150.0,0.00022364,120]
[348855470,1736814990950,150.0,0.00022034,120]
[348855471,1736814997854,214.0,0.00023,120]
[348855477,1736815418007,381.0,0.00023,120]
[348855478,1736815555300,4133.79,0.00018,30]
[348855479,1736815576525,200.0,0.00023,120]
[348855480,1736815586539,2000.0,0.00023,120]
[348855481,1736815613352,200.0,0.00023,120]
[348855483,1736815624940,2000.0,0.0002,30]
[348855485,1736815627309,-645.62,8.551e-05,2]
[348855486,1736815627333,-17655.38,8.551e-05,5]
[348855488,1736815646458,374.13139,8.178e-05,2]
[348855489,1736815650270,-5095.62,8.551e-05,5]
[348855490,1736815652696,200.0,0.00023,120]
[348855491,1736815681190,425.86861,8.433e-05,2]
[348855492,1736815681212,574.13139,8.433e-05,2]
[348855493,1736815689103,225.86861,8.419e-05,2]
[348855494,1736815689125,24.13139,8.419e-05,2]
[348855495,1736815710809,150.0,0.00022076,120]
[348855496,1736815735866,775.86861,8.534e-05,2]
[348855497,1736815735889,562.13139,8.534e-05,2]
[348855498,1736815741559,237.86861,8.534e-05,2]
[348855499,1736815741585,800.0,8.534e-05,2]
[348855500,1736815741607,800.0,8.534e-05,2]
[348855501,1736815741628,162.13139,8.534e-05,2]
[348855505,1736815771284,150.0,0.00019761,120]
[348855507,1736815780817,292.0201,8.463e-05,2]
[348855514,1736815831725,-153.0,8.563e-05,2]
[348855515,1736815831735,-323.67512439,8.563e-05,2]
[348855516,1736815831760,-428.21096132,8.563e-05,2]
[348855517,1736815831772,-8118.30391429,8.563e-05,2]
[348855518,1736815831781,-299.76,8.563e-05,2]
[348855519,1736815831791,-250.0,8.6e-05,2]
[348855520,1736815831801,-702.27977383,8.763e-05,2]
[348855521,1736815831826,-1891.03060736,8.763e-05,2]
[348855522,1736815831837,-424.68961881,8.763e-05,2]
[348855523,1736815831847,-250.0,8.781e-05,2]
[348855524,1736815831855,-150.0,8.877e-05,2]
[348855525,1736815831864,-250.74038119,8.902e-05,2]
[348855526,1736815831892,-346.91961881,8.902e-05,2]
[348855527,1736815831902,-174.28931452,8.993e-05,2]
[348855528,1736815831913,-1674.67068548,8.993e-05,2]
[348855529,1736815831923,-150.99,8.993e-05,2]
[348855530,1736815831932,-150.99,8.993e-05,2]
[348855531,1736815831941,-299.99,8.993e-05,2]
[348855532,1736815831950,-956.35,8.993e-05,2]
[348855533,1736815831959,-167.43,9.001e-05,2]
[348855534,1736815831968,-1170.0,9.047e-05,2]
[348855535,1736815831977,-178.21,9.049e-05,2]
[348855536,1736815831986,-178.21,9.06e-05,2]
[348855537,1736815831995,-178.21,9.071e-05,2]
[348855538,1736815832004,-178.21,9.083e-05,2]
[348855539,1736815832013,-178.21,9.094e-05,2]
[348855540,1736815832022,-150.0,9.178e-05,2]
[348855541,1736815832031,-437.97,9.179e-05,2]
[348855542,1736815832040,-437.97,9.179e-05,2]
[348855543,1736815832050,-772.26,9.179e-05,2]
[348855544,1736815832059,-772.26,9.179e-05,2]
[348855545,1736815832068,-772.26,9.179e-05,2]
[348855546,1736815832078,-437.97,9.179e-05,2]
[348855547,1736815832088,-772.26,9.179e-05,2]
[348855548,1736815832098,-437.97,9.179e-05,2]
[348855549,1736815832107,-772.26,9.179e-05,2]
[348855551,1736815832116,-437.97,9.179e-05,2]
[348855553,1736815832125,-772.26,9.179e-05,2]
[348855555,1736815832135,-772.26,9.179e-05,2]
[348855556,1736815832144,-772.26,9.179e-05,2]
[348855557,1736815832154,-693.36,9.179e-05,2]
[348855558,1736815832164,-772.26,9.241e-05,2]
[348855559,1736815832173,-201.07,9.389e-05,2]
[348855560,1736815832183,-500.0,9.4e-05,3]
[348855561,1736815832192,-1000.0,9.487e-05,2]
[348855562,1736815832202,-180.114,9.5e-05,2]
[348855563,1736815832211,-1100.0,9.5e-05,3]
[348855564,1736815832221,-300.0,9.575e-05,2]
[348855565,1736815832230,-980.19,9.575e-05,2]
[348855566,1736815832240,-1600.0,9.6e-05,3]
[348855567,1736815832249,-1103.2601,9.687e-05,2]
[348855568,1736815832258,-6384.8029,9.687e-05,2]
[348855569,1736815832267,-3708.11914052,9.69e-05,2]
[348855570,1736815832285,-1710.433725,9.69e-05,2]
[348855571,1736815832298,-1274.11433448,9.69e-05,2]
[348855572,1736815832307,-500.0,9.69e-05,2]
[348855573,1736815832316,-1891.7575,9.69e-05,2]